Workbook

Sheet Inventario Doc
H7: Versión . CADIDO 2025
C8: (1) Hoja No.: | F8: (2)Tipo de Archivo:
C9: (3) Lugar y Fecha de Elaboración:
C10: (4) Fondo:
C11: (5) Unidad Académica o Dependencia Administrativa:
C12: (6) Nombre del Area Productora:
B14: (7) No. Consecutivo | C14: (8) No. De Caja | D14: (9) No. Expediente | E14: (10) Legajos | F14: (11) Sección | G14: (12) Serie | H14: (13) Código de Clasificación | I14: (14) Nombre del Expediente | J14: (15) Descripción | K14: Periodo de Trámite (Fechas Extremas) | M14: (18) No. Total de Fojas | N14: (19) Soporte(s) Documental(es) | O14: Condiciones de Acceso (Preclasificación) | Q14: (22) Valores Documentales Primarios | R14: (23)Vigencia Documental (años) | T14: (24) Tradicion Documental | U14: (25) Ubicación | V14: (26) Observaciones
K15: (16) Inicio/ Apertura | L15: (17) Término/ Cierre | N15: Impreso (papel) / Digital: | O15: (20) Público, Reservado, Confidencial | P15: (21)Periodo de Reserva (años) | Q15: Admvo/ Legal/ Fiscal/ Contable | R15: Archivo de Trámite | S15: Archivo de Concentración | T15: Copias / originales
B16: 1 | H16: UAN/SECCION/SERIE/AÑO DE APERTURA
B17: 2
B18: 3
B19: 4
B20: 5
B21: 6
B22: 7
B23: 8
B24: 9
B25: 10
B27: El presente inventario consta de (27) ____ hojas y ampara la cantidad de (28)____ expedientes físicos de los años extremos (29)_____. Para expedientes con documentos electrónicos, ampara la cantidad de (30)____ (KB, MB, GB, TB) almacenados en (31)____.

Sheet Hoja1
A2: Admvo | C2: Archivo de Tramite
A3: Admvo/ Legal | C3: Archivo de concentración
A4: Admvo/ Fiscal
A5: Admvo/ Contable
A6: Admvo/ Legal/ Fiscal
A7: Admvo/ Legal/ Contable
A8: Admvo/ Fiscal/ Contable
A9: Admvo/ Legal/ Fiscal/ Contable

Sheet SECCION SERIES (hidden)
A1: SECCION | C1: 1C. Normativa Universitaria | E1: 2C. Asuntos Jurídicos | G1: 3C. Planeación, Presupuestación, Evaluación y Organización. | I1: 4C Recursos Humanos. | K1: 5C Recursos Financieros | M1: 6C Recursos Materiales y Obra Pública. | O1: 7C Servicios Generales | Q1: 8C Tecnologías y Servicios de la Información. | S1: 9C Comunicación y Enlace | U1: 10C Evaluación, Control y Fiscalización | W1: 11C Transparencia y acceso a la información pública | Y1: 12C Gestión de la Calidad Administrativa | AA1: 13C Gestión Documental y de Archivos | AC1: 1S. Docencia | AE1: 2S. Investigación. | AG1: 3S. Control Escolar | AI1: 4S. Difusión y Extensión Cultural | AK1: 5S. Gobierno | AM1: 6S. Sistema Bibliotecario
A2: _1C_Normativa_Universitaria | C2: 1C.1 Proyectos en normativa universitaria | E2: 2C.1 Programas y proyectos referente a asuntos juridícos | G2: 3C1. Normas y políticas en materia de planeación, presupuestación, evaluacion y organización | I2: 4C.1 Programa de Desarrollo de Capacidades | K2: 5C.1 Porgramas y proyectos en materia de Recursos Financieros y Contables | M2: 6C.1 Programa Anual de Obra | O2: 7C.1 Programas y proyectos en materia de servicios generales | Q2: 8C.1 Programas y proyectos en materia de telecomunicaciones | S2: 9C.1 Programas y proyectos de comunicación social | U2: 10C.1 Control Interno | W2: 11C.1 Solicitudes de acceso a la información pública | Y2: 12C.1 Programas de mejora administrativa | AA2: 13C.1 Programa Anual de Desarrollo Archivístico | AC2: 1S.1 Disposiciones en materia de Docencia | AE2: 2S.1 Proyectos de investigación | AG2: 3S1. Disposiciones generales en materia de administración educativa | AI2: 4S.1 Proyectos Culturales, artísticos de extensión del conocimiento y Responsabilidad Social | AK2: 5S.1 Mensajes de autoridades | AM2: 6S.1 Adquisición de Libros
A3: _2C_Asuntos_Jurídicos | E3: 2C.1.1 Plan de trabajo | G3: 3C.2 Programas y proyectos de planeación | I3: 4C.2 Programa de Desarrollo de Capacidades | Q3: 8C.2 Desarrollo e infraestructura de telecomunicaciones | S3: 9C.1.1 Programas de Trabajo | U3: 10C.2 Atención y Control de Contrataciones Públicas | W3: 11C.1.1 Recurso de revisión de solicitudes de acceso | AA3: 13C.11 Informes anuales | AC3: 1S.2 Guía Docente | AE3: 2S.2 Programas y proyectos de apoyo a la investigación y al posgrado | AM3: 6S.1.1 Solicitud de Bibliografía
A4: _3C_Planeación._Presupuestación._Evaluación_y_Organización | C4: 1C.2 Ordenamientos Jurídicos | G4: 3C.3 Programas y proyectos de presupuestación | I4: 4C.3 Clima laboral | K4: 5C.2 Egresos | M4: 6C.2 Programas Anuales de Adquisiciones, Arrendamiento y Servicios | O4: 7C.2 Servicios Básicos | Q4: 8C.3 Desarrollo e infraestructura de la página web de la Universidad de Guanajuato | S4: 9C.1.2 Proyectos Institucionales | U4: 10C.3 Evaluación al Desempeño Institucional | Y4: 12C.2 Gestión de Procesos Institucionales | AE4: 2S.3 Programas y proyectos de apoyo para la vinculación, difusión y divulgación de la investigación | AG4: 3S.2 Procesos de admisión | AI4: 4S.1.1 Universiada | AK4: 5S.2 Sesiones de Órganos Colegiados | AM4: 6S.1.2 Entrega - Recepción
A5: _4C_Recursos_Humanos | C5: 1C.2.1 Estatutos | E5: 2C.2 Representaciones y poderes notariales | G5: 3C.4 Monitoreo y seguimiento de programas y proyectos. | I5: 4C.4 Expediente de personal | K5: 5C.2.1 Tranferencias | M5: 6C.2.1 Adquisición, arrendamiento y servicios | Q5: 8C.4 Desarrollo e infraestructura de redes | S5: 9C.1.3 Seguimiento y evaluación de planes y programas de trabajo | U5: 10C.4 Cumplimiento de Obligaciones Públicas | W5: 11C.2 Solicitudes de derechos ARCO | Y5: 12C.2.1 Macroprocesos | AA5: 13C.2 Unidades de Correspondencia | AC5: 1S.3 Planes de estudio | AE5: 2S.4 Programas para el reconocimiento a la investigación y al posgrado | AG5: 3S.2.1 Cedulas de admisión | AI5: 4S.1.2 Feria del Libro | AK5: 5S.2.1 Dictamenes | AM5: 6S.1.3 Donaciones y canje
A6: _5C_Recursos_Financieros | C6: 1C.2.2 Códigos | G6: 3C.5 Programas y proyectos de organización | I6: 4C.5 Expedientes de registro y control de plazas | K6: 5C.2.2 Cheques | O6: 7C.3 Servicios de seguridad y vigilancia | Q6: 8C.5 Control de uso de licencias y usuarios de software y hardware | U6: 10C.5 Revisión y Auditorías Internas | W6: 11.C.2.1 Recurso de revisión de solicitudes de derechos ARCO | Y6: 12C.2.2 Manuales de Procesos | AA6: 13C.2.1 Inventarios Generales | AC6: 1S.3.1 Nivel Medio Superior | AE6: 2S.5 Programas externos de becas para posgrados | AG6: 3S.2.2 Resultados de admisión | AI6: 4S.1.3 Espiral | AK6: 5S.2.2 Informes
A7: _6C_Recursos_Materiales_y_Obra_Pública | C7: 1C.2.3 Reglamentos | E7: 2C.3 Asistencia, asesoría y consultoría | I7: 4C.6 Nómina Institucional | K7: 5C.2.3 Fideicomisos | M7: 6C.3 Expedientes Unitarios | Q7: 8C.6 Asesoría en tecnologías de información y comunicación | S7: 9C.2 Actos y eventos institucionales | U7: 10C.6 Atención y Control de Procedimiento de Fiscalización | Y7: 12C.2.3 Procesos SED-Pbr | AA7: 13C.2.2. Minutario | AC7: 1S.3.2 Superior | AE7: 2S.6 Información estadística de la producción científica | AI7: 4S.1.4 GUCCE | AK7: 5S.2.3 Resoluciones | AM7: 6S.2 Adquisición de Sistemas y Bases de Datos
A8: _7C_Servicios_Generales | C8: 1C.2.4 Políticas | E8: 2C.3.1 Normatividad Jurídica | G8: 3C.6 Planes, programas o proyectos institucionales | I8: 4C.7 Descuentos | K8: 5C.2.4 Gastos por comprobar | M8: 6C.3.1 Obra pública y servicios relacionada con la misma | O8: 7C.4 Limpieza, higiene y fumigación | Q8: 8C.7 Programas y proyectos en materia de informática | S8: 9C.2.1 Agenda institucional de eventos | U8: 10C.7 Justicia Administrativa Universitaria | W8: 11C.3 Portal de Transparencia | Y8: 12C.2.4 Oficios de liberación de procesos | AG8: 3S.3 Expediente del Estudiante | AI8: 4S.1.5 Ciencia es Cultura | AK8: 5S.2.4 Acuerdos | AM8: 6S.2.1 Selección de sistemas y bases de datos
A9: _8C_Tecnologías_y_Servicios_de_la_Información | C9: 1C.2.5 Lineamientos | E9: 2C.3.2 Análisis de iniciativas normativas | G9: 3C.6.1 Plan de Desarrollo (PLADI) | I9: 4C.8 Estímulos | O9: 7C.4.1 Rutinarios | Q9: 8C.8 Desarrollo informático | U9: 10C.8 Representaciones y Gestión para el Cumplimiento de las Atribuciones Públicas | AA9: 13C.3 Archivo de Concentración | AC9: 1S.4 Planes de trabajo | AG9: 3S.3.1 Expediente académico | AI9: 4S.1.6 OSUG | AK9: 5S.2.5 Actas
A10: _9C_Comunicación_y_Enlace | C10: 1C.2.6 Manuales | E10: 2C.3.3 Recomendaciones de organismos de Derechos Humanos | G10: 3C.6.2 Planes, programas, y proyectos | I10: 4C.9 Procesos de Selección | K10: 5C.3 Estados Financieros | M10: 6C.4 Ordenes de servicios | O10: 7C.4.2 Especiales | Q10: 8C.9 Seguridad informática | S10: 9C.3 Representaciones | W10: 11C.4 Cumplimiento a las obligaciones de Transparencia | Y10: 12C.3 Indicadores de desempeño, calidad y productividad | AA10: 13C.3.1 Transferencias primarias | AC10: 1S.4.1 Informe de labores en materia de docencia | AG10: 3S.3.2 Altas y baja | AI10: 4S.1.7 FIC | AM10: 6S.3 Adquisición de infraestructura Académica
A11: _10C_Evaluación._Control_y_Fiscalización | C11: C311C.2.7 Circulares | G11: 3C.6.3 Informes de Gestión | I11: 4C.10 Prestaciones Contractuales | K11: 5C.3.1 Estados financieros mensuales | Q11: 8C.10 Análisis, desarrollo y programación de sistemas | S11: 9C.3.1 Red de comunicación de COEPES | W11: 11C.4.1 Verificaciones de Obligaciones de Transparencia | AA11: 13C.3.2 Consulta y préstamos | AG11: 3S.3.3 Horarios | AI11: 4S.1.8 Grupos artísticos | AK11: 5S.3 Nombramientos y designaciones | AM11: 6S.3.1 Proyectos de infraestructura en biblioteca
A12: _11C_Transparencia_y_acceso_a_la_información_pública | E12: 2C.4 Representación Legal | G12: 3C.6.4 Programa Operativo Institucional (POA) | I12: 4C.11 Jubilaciones | K12: 5C.3.2 Estados financieros trimestrales | M12: 6C.5 Registro y Control de Proveedores | O12: 7C.5 Servicios de Transporte y movilidad | Q12: 8C.11 Automatización de procesos | S12: 9c.3.2 Red Nacional de Gacetas | W12: 11C.4.2 Denuncias por incumplimiento a las Obligaciones de Transparencia | Y12: 12C.4 Certificación de Calidad de Procesos y Servicios | AC12: 1S.5 Curso especial | AG12: 3S.3.4 Kárdex | AI12: 4S.1.9 Cineclub | AK12: 5S.4 Procesos de elección y procesos de designación
A13: _12C_Gestión_de_la_Calidad_Administrativa | C13: 1C.3 Acuerdos | E13: 2C.4.1 Juicios en diversas materias donde la Universidad tiene un interés | I13: 4C.12 Asuentos Laborales | K13: 5C.3.3 Cuenta pública anual. | M13: 6C.5.1 Padrón de proveedores | O13: 7C.5.1 Solicitudes de transportes | Q13: 8C.12 Control y desarrollo del equipo informático | S13: 9C.3.3 ANUIES | Y13: 12C.4.1 Programas y planes de auditoría | AA13: 13C.4 Archivo Histórico | AC13: 1S.6 Evaluación Docente | AI13: 4S.1.10 Otros | AK13: 5S.5 Recomendaciones | AM13: 6S.4 Cooperación Interinstitucional
A14: _13C_Gestión_Documental_y_de_Archivos | C14: 1C.3.1 Autoridades Unipersonales | E14: 2C.4.2 Procedimientos Contencioso Administrativo | G14: 3C.7 Información Estadística | I14: 4C.13 Honorarios por servicios profesionales | O14: 7C.5.2 Control de combustible | Q14: 8C.13 Desarrollo, actualización y mantenimiento del sitio web (soporte técnico, infraestructura, servidor, conectividad) | S14: 9C.3.4 Consejo Ciudadano del Premio Nacional de Periodismo | W14: 11C.5 Protección de Datos Personales | Y14: 12C.4.2 Expedientes de auditoras y auditores | AA14: 13C.4.1 Consultas | AC14: 1S.7 Programa Institucional de Tutorías | AG14: 3S.4 Evaluaciones y acreditación de alumnos/almunas | AK14: 5S.6 Procedimientos disciplinarios y defensa de derechos humanos | AM14: 6S.4.1 Asociaciones Bibliotecarias y Redes
C15: 1C.3.2 Órganos Cólegiados | E15: 2C.4.3 Juicios de amparo. | G15: 3C.7.1 Sistemas de Información | I15: 4C.14 Asociaciones Sindicales | K15: 5C.4 Libros Contables | M15: 6C.6 Bienes muebles | O15: 7C.5.3 Registro de parque vehicular | Q15: 8C.14 Programas y proyectos referentes a servicios de información | S15: 9C.3.5 Consejo Directivo TV4 | Y15: 12C.4.3 Hallazgos y seguimientos | AA15: 13C.4.2 Inventarios | AC15: 1S.8 Expediente del profesorado | AG15: 3S.4.1 Exámenes | AI15: 4S.2 Agenda Cultural | AM15: 6S.4.2 Membresías
A16: _1S_Docencia | C16: 1C.3.3 Otros | G16: 3C.7.2 Analisis, reportes e informes oficiales | I16: 4C.15 Organigramas | K16: 5C.5 Pólizas de diario | M16: 6C.6.1 Resguardos | Q16: 8C.15 Administración y preservación de acervos digitales | W16: 11C.6 Comité de Transparencia | Y16: 12C.4.4 Reportes | AA16: 13C.4.3 Difusión y divulgación | AC16: 1S.9 Programas y proyectos de apoyo al profesorado | AG16: 3S.4.2 Lista de asistencia | AK16: 5S.7 Premios, distinciones y reconocimientos
A17: _2S_Investigación | E17: 2C.5 Instrumentos Jurídicos Consensuales | K17: 5C.6 Auxiliar de Cuentas | M17: 6C.6.2 Oficio de cambio de resguardante | O17: 7C.6 Servicios de correspondencia y mensajería | Q17: 8C.16 Procesos técnicos en los servicios de información | S17: 9C.4 Publicación y difusión de información | W17: 11C.6.1 Convocatoria | Y17: 12C.4.5 Propuestas económicas por casa certificadora | AG17: 3S.4.3 Recursamiento | AI17: 4S.3 Talleres Culturales, Artísticos, de extensión del conocimiento y responsabilidad social | AK17: 5S.7.1 Otorgados por la Universidad de Guanajuato | AM17: 6S.5 Biblioteca Digital
A18: _3S_Control_Escolar | C18: 1C.4 Sesiones de trabajo | E18: 2C.5.1 Contratos | G18: 3C.8 Programación Presupuestal | I18: 4C.16 Servicios de Salud | K18: 5C.7 Conciliaciones Bancarias | M18: 6C.6.3 Constancia de liberación de resguardo de bienes | O18: 7C.6.1 Reporte de información de los paquetes entregado-recibidos | Q18: 8C.17 Acceso y reserva en los servicios de información | S18: 9C.4.1 Página Institucional | W18: 11C.6.2 Actas de Comité de Transparencia | Y18: 12C.4.6 Reportes de Hallazgos | AA18: 13C.5 Gestión Documental | AC18: 1S.10 Evaluación curricular | AK18: 5S.7.2 Recibidos por la Universidad de Guanajuato | AM18: 6S.5.1 Bases de Datos y Recursos de Información
A19: _4S_Difusión_y_Extensión_Cultural | C19: 1C.4.1 Actas y minutas de reuniones ordinarias y extraordinarias | E19: 2C.5.2 Convenios | I19: 4C.16.1 Afiliación y actualización de derechos | K19: 5C.8 Afectaciones presupuestales | M19: 6C.6.4 Vales de salida de bienes | Q19: 8C.18 Productos para La divulgación de servicios | S19: 9C.4.2 Correo electrónico | W19: 11C.6.3 Resoluciones del comité de Transparencia | Y19: 12C.4.7 Buzón Institucional de quejas, sugerencias, felicitaciones | AA19: 13C.5.1 Documentos internos de conocimiento. | AC19: 1S.10.1 Creación PE | AG19: 3S.5 Trámites Escolares | AI19: 4S.3.1 Danza | AM19: 6S.5.2 Sistema Integrado de Bibliotecas
A20: _5S_Gobierno | I20: 4C.16.2 Promoción en materia de salud | K20: 5C.9 Transferencias de presupuesto | M20: 6C.6.5 Informe de bienes en desuso y/o inservibles | O20: 7C.7 Mantenimiento, conservación e instalación de mobiliario | Q20: 8C.19 Servicios y productos en internet e intranet | S20: 9C.4.3 Redes sociales | W20: 11C.6.4 Acuerdos | Y20: 12C.4.8 Riesgos | AC20: 1S.10.2 Actualización elementos PE | AG20: 3S.5.1 Trámite de Titulo | AI20: 4S.3.2 Teatro | AM20: 6S.5.3 Sitio Web
A21: _6S_Sistema_Bibliotecario | E21: 2C.6 Propiedad Intelecutal, Autoral e Industrial | I21: 4C.16.3 Servicio médico | K21: 5C.10 Ampliaciones del presupuesto | M21: 6C.6.6 Extravio y/o robo de bienes | O21: 7C.8 Control y servicios en auditorios, salas, museos y áreas deportivas | Q21: 8C.20 Servicios de telefonía, telefonía celular y radiolocalización | AA21: 13C.6 Programas de mantenimiento de conservación. | AC21: 1.S.10.3 Suspensión o supresión PE | AG21: 3S.5.2 Listado de Credenciales expedidas | AI21: 4S.3.3 Música
C22: 2C.1 Programas y proyectos referente a asuntos juridicos | E22: 2C.6.1 Derechos de autor | I22: 4C.16.4 Certificados de incapacidad | K22: 5C.11 Compras Directas | S22: 9C.5 Publicidad Institucional | Y22: 12C.5 Resultados de la encuesta de Satisfacción | AG22: 3S5.3 Certificado de Estudios | AI22: 4S.3.4 Otros | AM22: 6S.6 Formación de Usuarios
C23: 2C.1.1 Plan de trabajo | E23: 2C.6.2 Marcas | I23: 4C.16.5 Deducibles | K23: 5C.12 Contratos Bancarios | M23: 6C.7 Bienes inmuebles | O23: 7C.9 Programas y proyectos de Protección Civil | S23: 9C.5.1 Campañas de Difusión | AA23: 13C.7 Grupo Interdisciplinario de Archivos | AC23: 1S.11 Ingreso y permanencia de Profesores | AG23: 3S.5.4 Legalización | AM23: 6S.6.1 Instrucción
E24: 2C.6.3 Patentes | I24: 4C.16.6 Estsudios de Laboratorio | K24: 5C.13 Inversiones en valores | M24: 6C.7.1 Copias de escrituras | O24: 7C.9.1 Capacitación y adiestramiento en materia de protección civil | S24: 9C.5.2 Brief | AA24: 13C.7.1 Sesiones Ordinarias | AC24: 1S.11.1 Profesor tiempo completo | AG24: 3S.5.5 Registro de Título para Cédula profesional | AI24: 4S.4 Publicaciones Universitarias
C25: 2C.2 Representaciones y poderes notariales | K25: 5C.14 Fideicomisos | O25: 7C.9.2 Dictamen de los estudios de análisis de riesgo | S25: 9C.5.3 Antena Universitaria | AA25: 13C.7.2 Sesiones Extraordinarias | AC25: 1S.11.2 Profesor tiempo parcial | AM25: 6S.7 Inventarios
E26: 2C.7 Procesoso Penales | K26: 5C.15 Catálogos contables | O26: 7C.9.3 Asesorías en materia de protección civil | AG26: 3S.6 Trayectoria estudiantiles | AI26: 4S.5 Administración de Espacios Cutlurales | AM26: 6S.7.1 Descarte
C27: 2C.3 Asistencia, asesoría y consultoría | E27: 2C.7.1 Carpeta de investigación | K27: 5C.16 Convenios de Investigación y Vinculación | M27: 6C.8 Adquisición de bienes, Enajenaciones, Arrendamientos y Contratación de Servicios | S27: 9C.6 Proyectos Audivisuales | AA27: 13C.8 Instrumentos de Control | AC27: 1S.12 Reconocimiento Docente | AG27: 3S.7 Becas, apoyos y estímulos estudiantiles | AI27: 4S.5.1 Auditorio General de la UG | AM27: 6S.7.2 Inventario bibliográfico
C28: 2C.3.1 Normativida Jurídica | E28: 2C.7.2 Causa penal | M28: 6C.8.1 Adjudicación Directa Federal | O28: 7C.10 Acopio de Residuos | S28: 9C.6.1 Audios y vídeos | AA28: 13C.9 Archivo Electrónico. | AC28: 1S.13 Actas de calificaciones | AI28: 4S.5.2 Teatro Principal | AM28: 6S.7.3 Inventario hemerográfico
C29: 2C.3.2 Análisis de iniciativas normativas | M29: 6C.8.2 Invitación a cuando menos tres proveedores Federal | S29: 9C.6.2 Galería Fotografica | AC29: 1S.14 Acreditaciones de Programas Educativos | AG29: 3S.8 Servicio Social | AI29: 4S.5.3 Mesón de San Antonio | AM29: 6S.7.4 Inventario de material audiovisual
C30: 2C.3.3 Recomendaciones de organismos de Derechos Humanos | E30: 2C.8 Procedimientos Administrativos no Jurisdiccionales | M30: 6C.8.3 Contrataciones por excepción de aplicación de Ley Federal | S30: 9C.6.3 Textos | AC30: 1S.15 Plataformas de gestión del aprendizaje | AG30: 3S.8.1 Primer componente | AI30: 4S.5.4 Plazuela de San Roque | AM30: 6S.7.5 Recepción de adquisicion
E31: 2C.8.1 Cobro de Garantías a Instituciones Financieras | M31: 6C.8.4 Licitación pública Federal | AC31: 1S.16 Programa de estimulos al desempeño del personal Docente | AG31: 3S.8.2 Segundo componente | AI31: 4S.5.5 Auditorio Euquerio Guerrero
C32: 2C.4 Representación Legal | E32: 2C.8.2 Procedimientos de recisión administrativa a proveedores y contratistas | M32: 6C.8.5 Adjudicación directa Estatal | S32: 9C.7 Productos Gráficos | AC32: 1S.17 Programas de apoyo para la capacitacicón de los profesores | AI32: 4S.5.6 Otros | AM32: 6S.8 Personal bibliotecario
C33: 2C.4.1 Juicios en materia civil | M33: 6C.8.6 Adjudicación directa con cotización de tres proveedores Estatal | S33: 9C.8 Gestión de Espacios de Comunicación | AG33: 3S.9 Programa Institucional de Movilidad e Intercambio Académico | AM33: 6S.8.1 Capacitación
C34: 2C.4.2 Procedimientos Contencioso Administrativo | E34: 2C.9 Procedimientos y requerimientos no contenciosos | M34: 6C.8.7 Contrataciones por excepción de aplicación de Ley Estatal | S34: 9C.9 Atención a medios | AC34: 1S.18 Programas de Educación Continua | AI34: 4S.6 Museos y Galerías | AM34: 6S.8.2 Directorio de Personal Bibliotecario
C35: 2C.4.3 Juicios de amparo. | E35: 2C.9.1 Pedimentos y requerimientos del Ministerio Público | M35: 6C.8.8 Licitación restringida | AC35: 1S.18.1 Diplomados | AG35: 3S.10 Seguro y prevención de accidentes | AI35: 4S.6.1 Museos | AM35: 6S.8.3 Expedientes de Capacitación de Personal
E36: 2C.9.2 Pedimentos y requerimientos Jurisdiccionales | M36: 6C.8.9 Licitación pública Estatal | S36: 9C.10 Boletines informativos para medios | AC36: 1S.18.2 Cursos | AG36: 3S.10.1 Seguro contra accidentes escolares | AI36: 4S.6.2 Galerías
C37: 2C.5 Instrumentos Jurídicos Consensuales | E37: 2C.9.3 Solicitud de peritajes | S37: 9C.10.1 Corrección de boletines | AC37: 1S.18.3 Talleres | AG37: 3S.10.2 Programas de Prevención y cuidado | AM37: 6S.9 Procesos Técnicos
C38: 2C.5.1 Contratos | M38: 6C.9 Comités | S38: 9C.10.2 Boletines publicados en el sitio web de la UG | AM38: 6S.9.1 Recepción
C39: 2C.5.2 Convenios | E39: 2C.10 Trámites migratorios y consulares | M39: 6C.9.1 Adquisiciones, enajenaciones, arrendamientos y contratación de servicios. | AG39: 3S.11 Salud Estudiantil | AM39: 6S.9.2 Catalogación
M40: 6C.9.2 Obra pública de la UG | S40: 9C.11 Comunicados Institucionales | AG40: 3S.11.1 Orientación eduativa | AM40: 6S.9.3 Distribución
C41: 2C.6 Propiedad Intelecutal, Autoral e Industrial | S41: 9C.11.1 WEB | AG41: 3S.11.2 Orientación nutricional
C42: 2C.6.1 Derechos de autor | M42: 6C.10 Almacenamiento, control y abastecimiento de bienes y materiales | S42: 9C.11.2 Prensa | AG42: 3S.11.3 Orientación psicologica | AM42: 6S.10 Repositorio Institucional
C43: 2C.6.2 Marcas | S43: 9C.11.3 Redes Sociales | AM43: 6S.10.1 Autorizaciones de Publicación
C44: 2C.6.3 Patentes | M44: 6C.11 Bienes patrimonio cultural | S44: 9C.11.4 Plan de medios | AG44: 3S.12 Programas y proyectos en materia de cultura física y deporte | AM44: 6S.10.2 Documentación de Sistema
M45: 6C.11.1 Cómite técnico de bienes de patrimonio cultural | S45: 9C.11.5 Otros | AM45: 6S.10.3 Documentos
C46: 2C.7 Procesoso Penales | M46: 6C.11.2 Solicitudes de préstamo y resguardo | AG46: 3S.13 Egresados | AM46: 6S.10.4 Interoperabilidad
C47: 2C.7.1 Carpeta de investigación | M47: 6C.11.3 Solicitudes de arrendamiento | S47: 9C.12 Inserciones y anuncios en medios | AM47: 6S.10.5 Manuales de Operación
C48: 2C.7.2 Causa penal | M48: 6C.11.4 Programas y acciones de conservación | AG48: 3S.13.1 Padrón de Egresados | AM48: 6S.10.6 Poblamiento
M49: 6C.11.5 Aseguramiento de bienes patrimonio cultural | S49: 9C.13 Memoría Universitaria | AG49: 3S.13.2 Bolsa de trabajo
C50: 2C.8 Procedimientos Administrativos no Jurisdiccionales | S50: 9C.13.1 Memoria Universitaria | AM50: 6S.11 Servicios bibliotecarios
C51: 2C.8.1 Cobro de Garantías a Instituciones Financieras | S51: 9C.13.2 Sintesis Digital | AM51: 6S.11.1 Acreditación de No Adeudo y Entrega de Trabajo de Titulación
C52: 2C.8.2 Procedimientos de recisión administrativa a proveedores y contratistas | AM52: 6S.11.2 Adeudos y Sanciones de Préstamos
S53: 9C.14 Desarrollo, actualización y mantenimiento de contenidos para el sitio web | AM53: 6S.11.3 Colección de Reserva
C54: 2C.9 Procedimientos y requerimientos no contenciosos | AM54: 6S.11.4 Consulta y Referencia
C55: 2C.9.1 Pedimentos y requerimientos del Ministerio Público | S55: 9C.15 Vinculación y Colaboración Institucional | AM55: 6S.11.5 Inducción
C56: 2C.9.2 Pedimentos y requerimientos Jurisdiccionales | S56: 9C.15.1 Red de enlaces de comunicación campus y CNMS | AM56: 6S.11.6 Préstamo de cubículos y salas
C57: 2C.9.3 Solicitud de peritajes | S57: 9C.15.2 Red de enlaces de comunicación campus COEPES | AM57: 6S.11.7 Préstamo de Laptops
AM58: 6S.11.8 Préstamo en Sala
C59: 2C.10 Trámites migratorios y consulares | AM59: 6S.11.9 Préstamo Externo
AM60: 6S.11.10 Préstamo Interbibliotecario
C61: 3C1. Normas y políticas en materia de planeación, presupuestación, evaluacion y organización | AM61: 6S.11.11 Recuperación de Documentos
C62: 3C.2 Programas y proyectos de planeación | AM62: 6S.11.12 Registro de Visitantes
C63: 3C.3 Programas y proyectos de presupuestación | AM63: 6S.11.13 Visita Guiada
C64: 3C.4 Monitoreo y seguimiento de programas y proyectos.
C65: 3C.5 Programas y proyectos de organización
C67: 3C.6 Planes, programas o proyectos institucionales
C68: 3C.6.1 Plan de Desarrollo (PLADI)
C69: 3C.6.2 Planes, programas, y proyectos
C70: 3C.6.3 Informes de Gestión
C71: 3C.6.4 Programa Operativo Institucional (POA)
C73: 3C.7 Información Estadística
C74: 3C.7.1 Sistemas de Información
C75: 3C.7.2 Analisis, reportes e informes oficiales
C77: 3C.8 Programación Presupuestal
C79: 4C.1 Programa de Desarrollo de Capacidades
C80: 4C.2 Programa de Desarrollo de Capacidades
C81: 4C.3 Clima laboral
C82: 4C.4 Expediente de personal
C83: 4C.5 Expedientes de registro y control de plazas
C84: 4C.6 Nómina Institucional
C85: 4C.7 Descuentos
C86: 4C.8 Estímulos
C87: 4C.9 Procesos de Selección
C88: 4C.10 Prestaciones Contractuales
C89: 4C.11 Jubilaciones
C90: 4C.12 Asuentos Laborales
C91: 4C.13 Honorarios por servicios profesionales
C92: 4C.14 Asociaciones Sindicales
C93: 4C.15 Organigramas
C95: 4C.16 Servicios de Salud
C96: 4C.16.1 Afiliación y actualización de derechos
C97: 4C.16.2 Promoción en materia de salud
C98: 4C.16.3 Servicio medico
C99: 4C.16.4 Certificados de incapacidad
C100: 4C.16.5 Deducibles
C102: 5C.1 Porgramas y proyectos en materia de Recursos Financieros y Contables
C104: 5c.2 Egresos
C105: 5C.2.1 Tranferencias
C106: 5C.2.2 Cheques
C107: 5C.2.3 Fideicomisos
C108: 5C.2.4 Gastos por comprobar
C110: 5C.3 Estados Financieros
C111: 5C.3.1 Estados financieros mensuales
C112: 5C.3.2 Estados financieros trimestrales
C113: 5C.3.3 Cuenta pública anual.
C115: 5C.4 Libros Contables
C116: 5C.5 Pólizas de diario
C117: 5C.6 Auxiliar de Cuentas
C118: 5C.7 Conciliaciones Bancarias
C119: 5C.8 Afectaciones presupuestales
C120: 5C.9 Transferencias de presupuesto
C121: 5C.10 Ampliaciones del presupuesto
C122: 5C.11 Compras Directas
C123: 5C.12 Contratos Bancarios
C124: 5C.13 Inversiones en valores
C125: 5C.14 Fideicomisos
C126: 5C.15 Catálogos contables
C127: 5C.16 Convenios de Investigación y Vinculación
C129: 6C.1 Programa Anual de Obra
C131: 6C.2 Programas Anuales de Adquisiciones, Arrendamiento y Servicios
C132: 6C.2.1 Adquisición, arrendamiento y servicios
C134: 6C.3 Expedientes Unitarios
C135: 6C.3.1 Obra pública y servicios relacionada con la misma
C137: 6C.4 Ordenes de servicios
C139: 6C.5 Registro y Control de Proveedores
C140: 6C.5.1 Padrón de proveedores
C142: 6C.6 Bienes muebles
C143: 6C.6.1 Resguardos
C144: 6C.6.2 Oficio de cambio de resguardante
C145: 6C.6.3 Constancia de liberación de resguardo de bienes
C146: 6C.6.4 Vales de salida de bienes
C147: 6C.6.5 Informe de bienes en desuso y/o inservibles
C148: 6C.6.6 Extravio y/o robo de bienes
C150: 6C.7 Bienes inmuebles
C151: 6C.7.1 Copias de escrituras
C152: 6C.8 Adquisición de bienes, Enajenaciones, Arrendamientos y Contratación de Servicios
C154: 6C.8 Adquisición de bienes, Enajenaciones, Arrendamientos y Contratación de Servicios
C155: 6C.8.1 Adjudicación Directa Federal
C156: 6C.8.2 Invitación a cuando menos tres proveedores Federal
C157: 6C.8.3 Contrataciones por excepción de aplicación de Ley Federal
C158: 6C.8.4 Licitación pública Federal
C159: 6C.8.5 Adjudicación directa Estatal
C160: 6C.8.6 Adjudicación directa con cotización de tres proveedores Estatal
C161: 6C.8.7 Contrataciones por excepción de aplicación de Ley Estatal
C162: 6C.8.8 Licitación restringida
C163: 6C.8.9 Licitación pública Estatal
C165: 6C.9 Cómites
C166: 6C.9.1 Adquisiciones, enajenaciones, arrendamientos y contratación de servicios.
C167: 6C.9.2 Obra pública de la UG
C169: 6C.10 Almacenamiento, control y abastecimiento de bienes y materiales
C171: 6C.11 Bienes patrimonio cultural
C172: 6C.11.1 Cómite técnico de bienes de patrimonio cultural
C173: 6C.11.2 Solicitudes de préstamo y resguardo
C174: 6C.11.3 Solicitudes de arrendamiento
C175: 6C.11.4 Programas y acciones de conservación
C176: 6C.11.5 Aseguramiento de bienes patrimonio cultural
C178: 7C.1 Programas y proyectos en materia de servicios generales
C180: 7C.2 Servicios Básicos
C182: 7C.3 Servicios de seguridad y vigilancia
C184: 7C.4 Limpieza, higiene y fumigación
C185: 7C.4.1 Rutinarios
C186: 7C.4.2 Especiales
C188: 7C.5 Servicios de Transporte y movilidad
C189: 7C.5.1 Solicitudes de transportes
C190: 7C.5.2 Control de combustible
C191: 7C.5.3 Registro de parque vehicular
C193: 7C.6 Servicios de correspondencia y mensajería
C194: 7C.6.1 Reporte de información de los paquetes entregado-recibidos
C196: 7C.7 Mantenimiento, conservación e instalación de mobiliario
C197: 7C.8 Control y servicios en auditorios, salas, museos y áreas deportivas
C199: 7C.9 Programas y proyectos de Protección Civil
C200: 7C.9.1 Capacitación y adiestramiento en materia de protección civil
C201: 7C.9.2 Dictamen de los estudios de análisis de riesgo
C202: 7C.9.3 Asesorías en materia de protección civil
C204: 7C.10 Acopio de Residuos
C206: 8C.1 Programas y proyectos en materia de telecomunicaciones
C207: 8C.2 Desarrollo e infraestructura de telecomunicaciones
C208: 8C.3 Desarrollo e infraestructura de la página web de la Universidad de Guanajuato
C209: 8C.4 Desarrollo e infraestructura de redes
C210: 8C.5 Control de uso de licencias y usuarios de software y hardware
C211: 8C.6 Asesoría en tecnologías de información y comunicación
C212: 8C.7 Programas y proyectos en materia de informática
C213: 8C.8 Desarrollo informático
C214: 8C.9 Seguridad informática
C215: 8C.10 Análisis, desarrollo y programación de sistemas
C216: 8C.11 Automatización de procesos
C217: 8C.12 Control y desarrollo del equipo informático
C218: 8C.13 Desarrollo, actualización y mantenimiento del sitio web (soporte técnico, infraestructura, servidor, conectividad)
C219: 8C.14 Programas y proyectos referentes a servicios de información
C220: 8C.15 Administración y preservación de acervos digitales
C221: 8C.16 Procesos técnicos en los servicios de información
C222: 8C.17 Acceso y reserva en los servicios de información
C223: 8C.18 Productos para La divulgación de servicios
C224: 8C.19 Servicios y productos en internet e intranet
C225: 8C.20 Servicios de telefonía, telefonía celular y radiolocalización
C227: 9C.1 Programas y proyectos de comunicación social
C228: 9C.1.1 Programas de Trabajo
C229: 9C.1.2 Proyectos Institucionales
C230: 9C.1.3 Seguimiento y evaluacion de planes y programas de trabajo
C232: 9C.2 Actos y eventos institucionales
... 258 more rows

Sheet Instrucciones (hidden)
E5: Lugar y Fecha de Elaboración: | I5: Versión 2021/ CADIDO 2017
H6: Tipo de Archivo:
H7: Hoja No.: | I7: de
C8: DATOS DE IDENTIFICACIÓN
C9: Fondo: | G9: Subfondo:
C10: Unidad Académica o Dependencia Administrativa: | G10: Departamento:
C11: Domicilio: | G11: Código del Área:
C12: Nombre del titular del área: | G12: Cargo del Titular del Área:
C13: Teléfono/extensión: | G13: Correo electrónico institucional:
C16: Nombre de la caja y número:
M18: Periodo de Trámite (Fechas Extremas) | O18: Condiciones de Acceso (Preclasificación) | Q18: Valores Documentales Primarios | R18: Valores Documentales Secundarios | S18: Vigencia Documental (años) | U18: Tipología(s) Documental(es) | V18: Soporte(s) Documental(es) | W18: Tradición Documental | AB18: Total Electrónico
B19: No. Consecutivo | C19: No. Expediente | D19: Volumen o Legajo | E19: Sección | F19: Serie o Subserie | G19: Código de Clasificación del expediente | H19: Nombre del Expediente | K19: Asunto o descripción del contenido del expediente | M19: Inicio/ Apertura | N19: Término/ Cierre | O19: Público, Reservado, Confidencial | P19: Periodo de Reserva (años) | Q19: Admvo/ Jurídico/ Legal/ Fiscal/ Contable/ Técnico/ Informativo/ | R19: Histórico/ Testimonial/ Evidencial/ Científico/ Cultural/ Informativo | S19: Archivo de Trámite | T19: Archivo de Concentración | U19: Actas, Inventarios, Facturas, Minutas, Oficios, Acuerdos, Listas, Vales, Planos, etc. | V19: Impreso (papel), Electrónico, Informático, Audiovisual, Gráfico, otro (describir): | W19: Originales | X19: Acuses | Y19: Copias | Z19: Total de Fojas o folios del expediente/ legajo | AA19: Metros Lineales | AB19: Kb | AC19: Mb | AD19: Gb | AE19: TB | AF19: Ubicación (Topográfica/ Ruta de Acceso electrónica) | AG19: Observaciones
B20: 1
B21: 2
B22: 3
B23: 4
B24: 5
B25: 6
B26: 7
B27: 8
B28: 9
B29: 11
B30: 12
B31: 13
B32: 14
B33: 15
W34: TOTALES: | Z34: =SUM(Z20:Z33) -> 0 | AA34: =SUM(AA20:AA33) -> 0 | AB34: =SUM(AB20:AB33) -> 0 | AC34: =SUM(AC20:AC33) -> 0 | AD34: 0 | AE34: 0
B37: Declaro bajo protesta de decir verdad que el presente inventario consta de un total de: | H37: expedientes,
B38: amparando un total de | D38: =Z34 -> 0 | E38: fojas (folios), de los años: | F38: ( __________ ) al ( __________ ), | G38: contenidos en un total
B39: de: | D39: cajas, sumando: | E39: =AA34 -> 0 | F39: metros lineales, un total de: | H39: Kg
B40: y: | D40: Kb/Mb/Gb/Tb
B44: Responsable de Elaboración: | F44: Revisó: | I44: Titular del Área (Autoriza/ valida):
B45: (Nombre y firma)
F46: (Nombre y Firma) | I46: (Nombre y Firma)
B47: Cargo | F47: Cargo | I47: Cargo

Sheet Equivalencias (hidden)
B2: UNIVERSIDAD DE GUANAJUATO
B3: SECRETARÍA GENERAL
B4: COORDINACIÓN DEL ARCHIVO GENERAL
B5: SISTEMA INSTITUCIONAL DE ARCHIVOS
B6: TABLA DE EQUIVALENCIAS DOCUMENTALES
B8: Fuente 1: INSTRUCTIVO PARA EL TRÁMITE DE BAJA DOCUMENTAL DE ARCHIVOS DEL GOBIERNO FEDERAL. Versión electrónica: http://himfg.com.mx/descargas/documentos/orarchivos/InstructivoBajasDocumentales_24082012.pdf. Fecha de Consulta: 04/septiembre/2020
B10: Fuente 2: "FCA-11_Guía_de_Archivo Documental" del Instituto Politécnico Nacional. https://www.ipn.mx/assets/files/drmi/docs/drmi/dsg/dda/FCA-11_Guia_de_Archivo_Documental.xlsx. Fecha de Consulta: 04/septiembre/2020.
B13: RECOMENDACIONES:
B14: 1. Capacidad máxima por fólder o legajo: | E14: 01 a 150 fojas
B15: 2. Capacidad máxima de una carpeta blanca o tipo lefford (Tamaño oficio/copia): | E15: 01 a 500 fojas
C18: Total de Fojas/Hojas (Rango) | E18: Equivalencia en Metros Lineales | F18: Unidad de Medida | G18: Equivalencia en Kilogramos | H18: Unidad de Medida
C19: 1 | D19: 6 | E19: 0.0004 | F19: Mts. | G19: =E19*40 -> 0.016 | H19: Kg.
C20: 7 | D20: 12 | E20: =+E1+0.0008 -> 0.0008 | F20: Mts. | G20: =E20*40 -> 0.032 | H20: Kg.
C21: 13 | D21: 18 | E21: =+E20+0.0008 -> 0.0016 | F21: Mts. | G21: 0.064 | H21: Kg.
C22: 19 | D22: 24 | E22: 0.0024 | F22: Mts. | G22: 0.096 | H22: Kg.
C23: 25 | D23: 30 | E23: 0.0032 | F23: Mts. | G23: 0.128 | H23: Kg.
C24: 31 | D24: 36 | E24: 0.004 | F24: Mts. | G24: 0.16 | H24: Kg.
C25: 37 | D25: 42 | E25: 0.0048 | F25: Mts. | G25: 0.192 | H25: Kg.
C26: 43 | D26: 48 | E26: 0.0056 | F26: Mts. | G26: 0.224 | H26: Kg.
C27: 49 | D27: 54 | E27: 0.0064 | F27: Mts. | G27: 0.256 | H27: Kg.
C28: 55 | D28: 60 | E28: 0.0072 | F28: Mts. | G28: 0.288 | H28: Kg.
C29: 61 | D29: 66 | E29: 0.008 | F29: Mts. | G29: 0.32 | H29: Kg.
C30: 67 | D30: 72 | E30: 0.0088 | F30: Mts. | G30: 0.352 | H30: Kg.
C31: 73 | D31: 78 | E31: 0.0096 | F31: Mts. | G31: 0.384 | H31: Kg.
C32: 79 | D32: 84 | E32: 0.0104 | F32: Mts. | G32: 0.416 | H32: Kg.
C33: 85 | D33: 90 | E33: 0.0112 | F33: Mts. | G33: 0.448 | H33: Kg.
C34: 91 | D34: 96 | E34: 0.012 | F34: Mts. | G34: 0.48 | H34: Kg.
C35: 97 | D35: 102 | E35: 0.0128 | F35: Mts. | G35: 0.512 | H35: Kg.
C36: 103 | D36: 108 | E36: 0.0136 | F36: Mts. | G36: 0.544 | H36: Kg.
C37: 109 | D37: 114 | E37: 0.0144 | F37: Mts. | G37: 0.576 | H37: Kg.
C38: 115 | D38: 120 | E38: 0.0152 | F38: Mts. | G38: 0.608 | H38: Kg.
C39: 121 | D39: 126 | E39: 0.016 | F39: Mts. | G39: 0.64 | H39: Kg.
C40: 127 | D40: 132 | E40: 0.0168 | F40: Mts. | G40: 0.672 | H40: Kg.
C41: 133 | D41: 138 | E41: 0.0176 | F41: Mts. | G41: 0.704 | H41: Kg.
C42: 139 | D42: 144 | E42: 0.0184 | F42: Mts. | G42: 0.736 | H42: Kg.
C43: 145 | D43: 150 | E43: 0.0192 | F43: Mts. | G43: 0.768 | H43: Kg.
C44: 151 | D44: 156 | E44: 0.02 | F44: Mts. | G44: 0.8 | H44: Kg.
C45: 157 | D45: 162 | E45: 0.0208 | F45: Mts. | G45: 0.832 | H45: Kg.
C46: 163 | D46: 168 | E46: 0.0216 | F46: Mts. | G46: 0.864 | H46: Kg.
C47: 169 | D47: 174 | E47: 0.0224 | F47: Mts. | G47: 0.896 | H47: Kg.
C48: 175 | D48: 180 | E48: 0.0232 | F48: Mts. | G48: 0.928 | H48: Kg.
C49: 181 | D49: 186 | E49: 0.024 | F49: Mts. | G49: 0.96 | H49: Kg.
C50: 187 | D50: 192 | E50: 0.0248 | F50: Mts. | G50: 0.992 | H50: Kg.
C51: 193 | D51: 198 | E51: 0.0256 | F51: Mts. | G51: 1.024 | H51: Kg.
C52: 199 | D52: 204 | E52: 0.0264 | F52: Mts. | G52: 1.056 | H52: Kg.
C53: 205 | D53: 210 | E53: 0.0272 | F53: Mts. | G53: 1.088 | H53: Kg.
C54: 211 | D54: 216 | E54: 0.028 | F54: Mts. | G54: 1.12 | H54: Kg.
C55: 217 | D55: 222 | E55: 0.0288 | F55: Mts. | G55: 1.152 | H55: Kg.
C56: 223 | D56: 228 | E56: 0.0296 | F56: Mts. | G56: 1.184 | H56: Kg.
C57: 229 | D57: 234 | E57: 0.0304 | F57: Mts. | G57: 1.216 | H57: Kg.
C58: 235 | D58: 240 | E58: 0.0312 | F58: Mts. | G58: 1.248 | H58: Kg.
C59: 241 | D59: 246 | E59: 0.032 | F59: Mts. | G59: 1.28 | H59: Kg.
C60: 247 | D60: 252 | E60: 0.0328 | F60: Mts. | G60: 1.312 | H60: Kg.
C61: 253 | D61: 258 | E61: 0.0336 | F61: Mts. | G61: 1.344 | H61: Kg.
C62: 259 | D62: 264 | E62: 0.0344 | F62: Mts. | G62: 1.376 | H62: Kg.
C63: 265 | D63: 270 | E63: 0.0352 | F63: Mts. | G63: 1.408 | H63: Kg.
C64: 271 | D64: 276 | E64: 0.036 | F64: Mts. | G64: 1.44 | H64: Kg.
C65: 277 | D65: 282 | E65: 0.0368 | F65: Mts. | G65: 1.472 | H65: Kg.
C66: 283 | D66: 288 | E66: 0.0376 | F66: Mts. | G66: 1.504 | H66: Kg.
C67: 289 | D67: 294 | E67: 0.0384 | F67: Mts. | G67: 1.536 | H67: Kg.
C68: 295 | D68: 300 | E68: 0.0392 | F68: Mts. | G68: 1.568 | H68: Kg.
C69: 301 | D69: 306 | E69: 0.04 | F69: Mts. | G69: 1.6 | H69: Kg.
C70: 307 | D70: 312 | E70: 0.0408 | F70: Mts. | G70: 1.632 | H70: Kg.
C71: 313 | D71: 318 | E71: 0.0416 | F71: Mts. | G71: 1.664 | H71: Kg.
C72: 319 | D72: 324 | E72: 0.0424 | F72: Mts. | G72: 1.696 | H72: Kg.
C73: 325 | D73: 330 | E73: 0.0432 | F73: Mts. | G73: 1.728 | H73: Kg.
C74: 331 | D74: 336 | E74: 0.044 | F74: Mts. | G74: 1.76 | H74: Kg.
C75: 337 | D75: 342 | E75: 0.0448 | F75: Mts. | G75: 1.792 | H75: Kg.
C76: 343 | D76: 348 | E76: 0.0456 | F76: Mts. | G76: 1.824 | H76: Kg.
C77: 349 | D77: 354 | E77: 0.0464 | F77: Mts. | G77: 1.856 | H77: Kg.
C78: 355 | D78: 360 | E78: 0.0472 | F78: Mts. | G78: 1.888 | H78: Kg.
C79: 361 | D79: 366 | E79: 0.048 | F79: Mts. | G79: 1.92 | H79: Kg.
C80: 367 | D80: 372 | E80: 0.0488 | F80: Mts. | G80: 1.952 | H80: Kg.
C81: 373 | D81: 378 | E81: 0.0496 | F81: Mts. | G81: 1.984 | H81: Kg.
C82: 379 | D82: 384 | E82: 0.0504 | F82: Mts. | G82: 2.016 | H82: Kg.
C83: 385 | D83: 390 | E83: 0.0512 | F83: Mts. | G83: 2.048 | H83: Kg.
C84: 391 | D84: 396 | E84: 0.052 | F84: Mts. | G84: =E84*40 -> 2.08 | H84: Kg.
C85: 397 | D85: 402 | E85: =+E84+0.0008 -> 0.0528 | F85: Mts. | G85: 2.112 | H85: Kg.
C86: 403 | D86: 408 | E86: 0.0536 | F86: Mts. | G86: 2.144 | H86: Kg.
C87: 409 | D87: 414 | E87: 0.0544 | F87: Mts. | G87: 2.176 | H87: Kg.
C88: 415 | D88: 420 | E88: 0.0552 | F88: Mts. | G88: 2.208 | H88: Kg.
C89: 421 | D89: 426 | E89: 0.056 | F89: Mts. | G89: 2.24 | H89: Kg.
C90: 427 | D90: 432 | E90: 0.0568 | F90: Mts. | G90: 2.272 | H90: Kg.
C91: 433 | D91: 438 | E91: 0.0576 | F91: Mts. | G91: 2.304 | H91: Kg.
C92: 439 | D92: 444 | E92: 0.0584 | F92: Mts. | G92: 2.336 | H92: Kg.
C93: 445 | D93: 450 | E93: 0.0592 | F93: Mts. | G93: 2.368 | H93: Kg.
C94: 451 | D94: 456 | E94: 0.06 | F94: Mts. | G94: 2.4 | H94: Kg.
C95: 457 | D95: 462 | E95: 0.0608 | F95: Mts. | G95: 2.432 | H95: Kg.
C96: 463 | D96: 468 | E96: 0.0616 | F96: Mts. | G96: 2.464 | H96: Kg.
C97: 469 | D97: 474 | E97: 0.0624 | F97: Mts. | G97: 2.496 | H97: Kg.
C98: 475 | D98: 480 | E98: 0.0632 | F98: Mts. | G98: 2.528 | H98: Kg.
C99: 481 | D99: 486 | E99: 0.064 | F99: Mts. | G99: 2.56 | H99: Kg.
C100: 487 | D100: 492 | E100: 0.0648 | F100: Mts. | G100: 2.592 | H100: Kg.
C101: 493 | D101: 498 | E101: 0.0656 | F101: Mts. | G101: 2.624 | H101: Kg.
C102: 499 | D102: 504 | E102: 0.0664 | F102: Mts. | G102: 2.656 | H102: Kg.
C103: 505 | D103: 510 | E103: 0.0672 | F103: Mts. | G103: 2.688 | H103: Kg.
C104: 511 | D104: 516 | E104: 0.068 | F104: Mts. | G104: 2.72 | H104: Kg.
C105: 517 | D105: 522 | E105: 0.0688 | F105: Mts. | G105: 2.752 | H105: Kg.
C106: 523 | D106: 528 | E106: 0.0696 | F106: Mts. | G106: 2.784 | H106: Kg.
C107: 529 | D107: 534 | E107: 0.0704 | F107: Mts. | G107: 2.816 | H107: Kg.
C108: 535 | D108: 540 | E108: 0.0712 | F108: Mts. | G108: 2.848 | H108: Kg.
C109: 541 | D109: 546 | E109: 0.072 | F109: Mts. | G109: 2.88 | H109: Kg.
C110: 547 | D110: 552 | E110: 0.0728 | F110: Mts. | G110: 2.912 | H110: Kg.
C111: 553 | D111: 558 | E111: 0.0736 | F111: Mts. | G111: 2.944 | H111: Kg.
C112: 559 | D112: 564 | E112: 0.0744 | F112: Mts. | G112: 2.976 | H112: Kg.
C113: 565 | D113: 570 | E113: 0.0752 | F113: Mts. | G113: 3.008 | H113: Kg.
C114: 571 | D114: 576 | E114: 0.076 | F114: Mts. | G114: 3.04 | H114: Kg.
C115: 577 | D115: 582 | E115: 0.0768 | F115: Mts. | G115: 3.072 | H115: Kg.
C116: 583 | D116: 588 | E116: 0.0776 | F116: Mts. | G116: 3.104 | H116: Kg.
C117: 589 | D117: 594 | E117: 0.0784 | F117: Mts. | G117: 3.136 | H117: Kg.
C118: 595 | D118: 600 | E118: 0.0792 | F118: Mts. | G118: 3.168 | H118: Kg.
C119: 601 | D119: 606 | E119: 0.08 | F119: Mts. | G119: 3.2 | H119: Kg.
C120: 607 | D120: 612 | E120: 0.0808 | F120: Mts. | G120: 3.232 | H120: Kg.
C121: 613 | D121: 618 | E121: 0.0816 | F121: Mts. | G121: 3.264 | H121: Kg.
C122: 619 | D122: 624 | E122: 0.0824 | F122: Mts. | G122: 3.296 | H122: Kg.
C123: 625 | D123: 630 | E123: 0.0832 | F123: Mts. | G123: 3.328 | H123: Kg.
C124: 631 | D124: 636 | E124: 0.084 | F124: Mts. | G124: 3.36 | H124: Kg.
C125: 637 | D125: 642 | E125: 0.0848 | F125: Mts. | G125: 3.392 | H125: Kg.
C126: 643 | D126: 648 | E126: 0.0856 | F126: Mts. | G126: 3.424 | H126: Kg.
C127: 649 | D127: 654 | E127: 0.0864 | F127: Mts. | G127: 3.456 | H127: Kg.
C128: 655 | D128: 660 | E128: 0.0872 | F128: Mts. | G128: 3.488 | H128: Kg.
C129: 661 | D129: 666 | E129: 0.088 | F129: Mts. | G129: 3.52 | H129: Kg.
C130: 667 | D130: 672 | E130: 0.0888 | F130: Mts. | G130: 3.552 | H130: Kg.
C131: 673 | D131: 678 | E131: 0.0896 | F131: Mts. | G131: 3.584 | H131: Kg.
C132: 679 | D132: 684 | E132: 0.0904 | F132: Mts. | G132: 3.616 | H132: Kg.
C133: 685 | D133: 690 | E133: 0.0912 | F133: Mts. | G133: 3.648 | H133: Kg.
C134: 691 | D134: 696 | E134: 0.092 | F134: Mts. | G134: 3.68 | H134: Kg.
C135: 697 | D135: 702 | E135: 0.0928 | F135: Mts. | G135: 3.712 | H135: Kg.
C136: 703 | D136: 708 | E136: 0.0936 | F136: Mts. | G136: 3.744 | H136: Kg.
C137: 709 | D137: 714 | E137: 0.0944 | F137: Mts. | G137: 3.776 | H137: Kg.
C138: 715 | D138: 720 | E138: 0.0952 | F138: Mts. | G138: 3.808 | H138: Kg.
C139: 721 | D139: 726 | E139: 0.096 | F139: Mts. | G139: 3.84 | H139: Kg.
C140: 727 | D140: 732 | E140: 0.0968 | F140: Mts. | G140: 3.872 | H140: Kg.
C141: 733 | D141: 738 | E141: 0.0976 | F141: Mts. | G141: 3.904 | H141: Kg.
C142: 739 | D142: 744 | E142: 0.0984 | F142: Mts. | G142: 3.936 | H142: Kg.
C143: 745 | D143: 750 | E143: 0.0992 | F143: Mts. | G143: 3.968 | H143: Kg.
C144: 751 | D144: 756 | E144: 0.1 | F144: Mts. | G144: 4 | H144: Kg.
C145: 757 | D145: 762 | E145: 0.1008 | F145: Mts. | G145: 4.032 | H145: Kg.
C146: 763 | D146: 768 | E146: 0.1016 | F146: Mts. | G146: 4.064 | H146: Kg.
C147: 769 | D147: 774 | E147: 0.1024 | F147: Mts. | G147: 4.096 | H147: Kg.
C148: 775 | D148: 780 | E148: 0.1032 | F148: Mts. | G148: =E148*40 -> 4.128 | H148: Kg.
C149: 781 | D149: 786 | E149: =+E148+0.0008 -> 0.104 | F149: Mts. | G149: 4.16 | H149: Kg.
C150: 787 | D150: 792 | E150: 0.1048 | F150: Mts. | G150: 4.192 | H150: Kg.
C151: 793 | D151: 798 | E151: 0.1056 | F151: Mts. | G151: 4.224 | H151: Kg.
C152: 799 | D152: 804 | E152: 0.1064 | F152: Mts. | G152: 4.256 | H152: Kg.
C153: SIA | D153: 810 | E153: 0.1072 | F153: Mts. | G153: 4.288 | H153: Kg.
C154: 811 | D154: 816 | E154: 0.108 | F154: Mts. | G154: 4.32 | H154: Kg.
C155: 817 | D155: 822 | E155: 0.1088 | F155: Mts. | G155: 4.352 | H155: Kg.
C156: 823 | D156: 828 | E156: 0.1096 | F156: Mts. | G156: 4.384 | H156: Kg.
C157: 829 | D157: 834 | E157: 0.1104 | F157: Mts. | G157: 4.416 | H157: Kg.
C158: 835 | D158: 840 | E158: 0.1112 | F158: Mts. | G158: 4.448 | H158: Kg.
C159: 841 | D159: 846 | E159: 0.112 | F159: Mts. | G159: 4.48 | H159: Kg.
C160: 847 | D160: 852 | E160: 0.1128 | F160: Mts. | G160: 4.512 | H160: Kg.
C161: 853 | D161: 858 | E161: 0.1136 | F161: Mts. | G161: 4.544 | H161: Kg.
C162: 859 | D162: 864 | E162: 0.1144 | F162: Mts. | G162: 4.576 | H162: Kg.
C163: 865 | D163: 870 | E163: 0.1152 | F163: Mts. | G163: 4.608 | H163: Kg.
C164: 871 | D164: 876 | E164: 0.116 | F164: Mts. | G164: 4.64 | H164: Kg.
C165: 877 | D165: 882 | E165: 0.1168 | F165: Mts. | G165: 4.672 | H165: Kg.
C166: 883 | D166: 888 | E166: 0.1176 | F166: Mts. | G166: 4.704 | H166: Kg.
C167: 889 | D167: 894 | E167: 0.1184 | F167: Mts. | G167: 4.736 | H167: Kg.
C168: 895 | D168: 900 | E168: 0.1192 | F168: Mts. | G168: 4.768 | H168: Kg.
C169: 901 | D169: 906 | E169: 0.12 | F169: Mts. | G169: 4.8 | H169: Kg.
C170: 907 | D170: 912 | E170: 0.1208 | F170: Mts. | G170: 4.832 | H170: Kg.
C171: 913 | D171: 918 | E171: 0.1216 | F171: Mts. | G171: 4.864 | H171: Kg.
C172: 919 | D172: 924 | E172: 0.1224 | F172: Mts. | G172: 4.896 | H172: Kg.
C173: 925 | D173: 930 | E173: 0.1232 | F173: Mts. | G173: 4.928 | H173: Kg.
C174: 931 | D174: 936 | E174: 0.124 | F174: Mts. | G174: 4.96 | H174: Kg.
C175: 937 | D175: 942 | E175: 0.1248 | F175: Mts. | G175: 4.992 | H175: Kg.
C176: 943 | D176: 948 | E176: 0.1256 | F176: Mts. | G176: 5.024 | H176: Kg.
C177: 949 | D177: 954 | E177: 0.1264 | F177: Mts. | G177: 5.056 | H177: Kg.
C178: 955 | D178: 960 | E178: 0.1272 | F178: Mts. | G178: 5.088 | H178: Kg.
C179: 961 | D179: 966 | E179: 0.128 | F179: Mts. | G179: 5.12 | H179: Kg.
C180: 967 | D180: 972 | E180: 0.1288 | F180: Mts. | G180: 5.152 | H180: Kg.
C181: 973 | D181: 978 | E181: 0.1296 | F181: Mts. | G181: 5.184 | H181: Kg.
C182: 979 | D182: 984 | E182: 0.1304 | F182: Mts. | G182: 5.216 | H182: Kg.
C183: 985 | D183: 990 | E183: 0.1312 | F183: Mts. | G183: 5.248 | H183: Kg.
C184: 991 | D184: 996 | E184: 0.132 | F184: Mts. | G184: 5.28 | H184: Kg.
C185: 997 | D185: 1002 | E185: 0.1328 | F185: Mts. | G185: 5.312 | H185: Kg.
C186: 1003 | D186: 1008 | E186: 0.1336 | F186: Mts. | G186: 5.344 | H186: Kg.
C187: 1009 | D187: 1014 | E187: 0.1344 | F187: Mts. | G187: 5.376 | H187: Kg.
C188: 1015 | D188: 1020 | E188: 0.1352 | F188: Mts. | G188: 5.408 | H188: Kg.
C189: 1021 | D189: 1026 | E189: 0.136 | F189: Mts. | G189: 5.44 | H189: Kg.
C190: 1027 | D190: 1032 | E190: 0.1368 | F190: Mts. | G190: 5.472 | H190: Kg.
C191: 1033 | D191: 1038 | E191: 0.1376 | F191: Mts. | G191: 5.504 | H191: Kg.
C192: 1039 | D192: 1044 | E192: 0.1384 | F192: Mts. | G192: 5.536 | H192: Kg.
C193: 1045 | D193: 1050 | E193: 0.1392 | F193: Mts. | G193: 5.568 | H193: Kg.
C194: 1051 | D194: 1056 | E194: 0.14 | F194: Mts. | G194: 5.6 | H194: Kg.
C195: 1057 | D195: 1062 | E195: 0.1408 | F195: Mts. | G195: 5.632 | H195: Kg.
C196: 1063 | D196: 1068 | E196: 0.1416 | F196: Mts. | G196: 5.664 | H196: Kg.
C197: 1069 | D197: 1074 | E197: 0.1424 | F197: Mts. | G197: 5.696 | H197: Kg.
C198: 1075 | D198: 1080 | E198: 0.1432 | F198: Mts. | G198: 5.728 | H198: Kg.
C199: 1081 | D199: 1086 | E199: 0.144 | F199: Mts. | G199: 5.76 | H199: Kg.
C200: 1087 | D200: 1092 | E200: 0.1448 | F200: Mts. | G200: 5.792 | H200: Kg.
C201: 1093 | D201: 1098 | E201: 0.1456 | F201: Mts. | G201: 5.824 | H201: Kg.
C202: 1099 | D202: 1104 | E202: 0.1464 | F202: Mts. | G202: 5.856 | H202: Kg.
C203: 1105 | D203: 1110 | E203: 0.1472 | F203: Mts. | G203: 5.888 | H203: Kg.
C204: 1111 | D204: 1116 | E204: 0.148 | F204: Mts. | G204: 5.92 | H204: Kg.
C205: 1117 | D205: 1122 | E205: 0.1488 | F205: Mts. | G205: 5.952 | H205: Kg.
C206: 1123 | D206: 1128 | E206: 0.1496 | F206: Mts. | G206: 5.984 | H206: Kg.
C207: 1129 | D207: 1134 | E207: 0.1504 | F207: Mts. | G207: 6.016 | H207: Kg.
... 645 more rows

Sheet Datos (hidden)
A1: Tipo de Archivo | B1: Fondo: | C1: Subfondo | D1: Unidad Académica o Dependencia Administrativa: | E1: Departamento | F1: Código de Área | G1: Secciones | H1: Series o Subseries | I1: Accesibilidad | J1: Valores Primarios | K1: Valores Secundarios | L1: Soporte(s) Documental(es) | M1: Departamento
A2: Archivo de Trámite | B2: Universidad de Guanajuato | C2: Rectoría General | D2: Rectoría General | E2: CAMPUS GUANAJUATO | F2: 100101 Rectoría General | H2: (CADIDO V.2017) | I2: Público | J2: Administrativo | K2: Histórico | L2: Impreso | M2: CAMPUS GUANAJUATO
A3: Archivo de Concentración | B3: Colegio del Estado | C3: Secretaría General | D3: Centro de Estudios y Acciones para el Desarrollo Social y Humano | E3: Departamento de Filosofía CGT | F3: 100102 Contraloría General | G3: 1C Legislación Universitaria | I3: Reservado | J3: Jurídico | K3: Testimonial | L3: Electrónico | M3: Departamento de Filosofía CGT
A4: Archivo Histórico | C4: Secretaría Académica | D4: Defensoría de los Derechos Humanos en el Entorno Universitario | E4: Departamento de Educación CGT | F4: 100103 Dirección de Comunicación y Enlace | G4: 2C Asuntos Jurídicos | H4: 1C LEGISLACIÓN UNIVERSITARIA | I4: Confidencial | J4: Legal | K4: Evidencial | L4: Informático | M4: Departamento de Educación CGT
C5: Secretaría de Gestión y Desarrollo | D5: Dirección de Comunicación y Enlace | E5: Departamento de Letras Hispánicas CGT | F5: 100104 Oficina del Abogado General | G5: 3C Programación, Organización y Presupuestación | H5: 1C.1 Disposiciones en materia de legislación | J5: Fiscal | K5: Cultural | L5: Audiovisual | M5: Departamento de Letras Hispánicas CGT
C6: Campus Guanajuato CGT | D6: Dirección de Desarrollo Estudiantil | E6: Departamento de Historia CGT | F6: 100105 Dirección de Desarrollo Estudiantil | G6: 4C Recursos Humanos | H6: 1C.2 Programas y proyectos en materia de legislación | J6: Contable | K6: Informativo | L6: Gráfico | M6: Departamento de Historia CGT
C7: Campus León CL | D7: Dirección de Igualdad y Corresponsabilidad Social | E7: Departamento de Lenguas CGT | F7: 100106 Dirección de Planeación | G7: 5C Recursos Financieros | H7: 1C.3 Ordenamientos jurídicos universitarios | J7: Técnico | K7: Científico | L7: Mixto | M7: Departamento de Lenguas CGT
C8: Campus Irapuato Salamanca CIS | D8: Oficina del Abogado General | E8: Departamento de Estudios Culturales CGT | F8: 100107 Centro de Estudios y Acciones para el Desarrollo Social y Humano | G8: 6C Recursos Materiales y Obra Pública | H8: 1C.3.1 Estatutos | J8: Informativo | L8: Otro: | M8: Departamento de Estudios Culturales CGT
C9: Campus Celaya Salvatierra CCS | D9: Sistema de Radio, Televisión e Hipermedia (SIRTH) | E9: Departamento de Ingeniería Química CGT | F9: 100108 Unidad de Transparencia | G9: 7C Servicios Generales | H9: 1C.3.2 Reglamentos
C10: Colegio del Nivel Medio Superior CNMS | D10: Unidad de Prevención y Seguridad Universitaria | E10: Departamento de Química CGT | F10: 100109 Dirección de Igualdad y Corresponsabilidad Social | G10: 8C Tecnologías y Servicios de la Información | H10: 1C.3.3 Decretos | J10: Administrativo, Fiscal/Contable | M10: División de Ciencias Naturales y Exactas CGT
D11: Unidad de Transparencia | E11: Departamento de Biología CGT | G11: 9C Comunicación Social | H11: 1C.4 Acuerdos del Rector, Rectores de Campus y del Honorable Consejo General Universitario | J11: Administrativo, Legal | M11: Departamento de Ingeniería Química CGT
C12: Contraloría General - OIC | E12: Departamento de Farmacia CGT | F12: 100201 Secretaría General | G12: 10C Auditoría | H12: 1C.5 Lineamientos | J12: Administrativo, Jurídico | M12: Departamento de Química CGT
C13: Defensoría de los Derechos Humanos en el Entorno Universitario | D13: Secretaría General | E13: Departamento de Astronomía CGT | G13: 11C Transparencia y Acceso a la Información | H13: 1C.6 Criterios de interpretación | J13: Administrativo, Legal, Fiscal/Contable | M13: Departamento de Biología CGT
C14: Junta Directiva | D14: Coordinación Administrativa | E14: Departamento de Matemáticas CGT | F14: 100301 Secretaría Académica | H14: 1C.7 Instrumentos jurídicos consensuales | J14: Administrativo, Legal, Fiscal/Contable, Técnico | M14: Departamento de Farmacia CGT
C15: Patronato de la Universidad de Guanajuato | D15: Coordinación del Archivo General | E15: Departamento de Enfermaería y Obstetricia CGT | F15: 100302 Dirección de Apoyo a la Investigación | G15: 1S Docencia | H15: 1C.8 Registro y certificación de firmas | J15: Administrativo, Legal, Fiscal/Contable, Técnico, Informativo | M15: Departamento de Astronomía CGT
D16: Imprenta Universitaria | E16: Departamento de Artes Visuales CGT | F16: 100303 Dirección de Extensión Cultural | G16: 2S Investigación | H16: 1C.9 Sesiones de Trabajo | J16: Administrativo, Jurídico, Legal, Fiscal/Contable | M16: Departamento de Matemáticas CGT
D17: Secretaría Técnica de Órganos Colegiados | E17: Departamento de Arquitectura CGT | F17: 100304 Dirección de Cooperación Académica | G17: 3S Control Escolar | H17: 1C.9.1 Actas y Minutas de Reuniones Ordinarias y Extraordinarias | J17: Administrativo, Jurídico, Legal, | M17: Departamento de Enfermaería y Obstetricia CGT
D18: Unidad de Mediación y Conciliación | E18: Departamento de Diseño CGT | F18: 100305 Dirección de Asuntos Académicos | G18: 4S Difusión y Extensión Cultural | H18: 1C.10 Comités, Consejos y Comisiones | J18: Administrativo, Técnico | M18: División de Arquitectura, Arte y Diseño CGT
E19: Departamento de Música CGT | F19: 100306 Dirección de Vinculación | G19: 5S Gobierno | H19: 1C.10.1 Dictámenes | J19: Administrativo, Informativo | M19: Departamento de Artes Visuales CGT
D20: Secretaría Académica | E20: Departamento de Ingeniería Civil CGT | F20: 100307 Sistema de Radio, Televisión e Hipermedia (SIRTH) | J20: Legal, Fiscal/Contable | M20: Departamento de Arquitectura CGT
D21: Dirección de Administración Escolar | E21: Departamento de Ingeniería Geomática CGT | F21: 100308 Dirección de Administración Escolar | H21: 2C ASUNTOS JURÍDICOS | J21: Legal, Informativo | M21: Departamento de Diseño CGT
D22: Dirección de Apoyo a la Investigación | E22: Departamento de Ingeniería en Minas, Metalurgia y Geología CGT | F22: 100309 Unidad de Apoyo al Desarrollo Educativo | G22: 16 | H22: 2C.1 Programas y proyectos referentes a asuntos jurídicos | J22: Legal, Técnico | M22: Departamento de Música CGT
D23: Dirección de Apoyo a la Investigación y al Posgrado | E23: Departamento de Estudios Organizacionales CGT | F23: 100310 Sistema Universitario de Multimodalidad Educativa (SUME) | G23: 17 | H23: 2C.2 Actuaciones y representaciones | J23: Jurídico-Fiscal/Contable | M23: División de Ingenierías CGT
D24: Dirección de Asuntos Académicos | E24: Departamento de Economía y Finanzas CGT | F24: 100311 Unidad de Responsabilidad Social | G24: 18 | H24: 2C.3 Asistencia, asesoría y consulta | J24: Jurídico, Legal | M24: Departamento de Ingeniería Civil CGT
D25: Dirección de Cooperación Académica | E25: Departamento de Gestión y Dirección de Empresas CGT | F25: 100312 Ecosistema Vida UG | G25: 19 | H25: 2C.4 Juicios | J25: Jurídico, Legal, Fiscal/Contable | M25: Departamento de Ingeniería Geomática CGT
D26: Dirección de Extensión Cultural | E26: Departamento de Derecho CGT | F26: 100313 Programa Editorial | G26: 20 | H26: 2C.4.1 Juicios contra la Universidad de Guanajuato | M26: Departamento de Ingeniería en Minas, Metalurgia y Geología CGT
D27: Dirección de Extensión Cultural | E27: Departamento de Gestión Pública CGT | F27: 100314 Sistema Bibliotecario | G27: 21 | H27: 2C.4.2 Juicios de la Universidad de Guanajuato | M27: División de Ciencias Económico Administrativas CGT
D28: Dirección de Relaciones Internacionales y Colaboración Académica | E28: Departamento de Estudios Políticos y de Gobierno | G28: 22 | H28: 2C.6 Propiedad intelectual, autoral e industrial | M28: Departamento de Estudios Organizacionales CGT
D29: Dirección de Vinculación | F29: 100401 Secretaría de Gestión | G29: 23 | H29: 2C.6.1 Derechos de propiedad industrial | M29: Departamento de Economía y Finanzas CGT
D30: Ecosistema de Vinculación, Innovación, Desarrollo y Aplicación del conocimiento (VIDA UG) | E30: CAMPUS LEÓN | F30: 100402 Dirección de Recursos Humanos | G30: 24 | H30: 2C.6.2 Derechos de autor | M30: Departamento de Gestión y Dirección de Empresas CGT
D31: Programa Editorial Universitario | E31: Departamento de Física CLE | F31: 100403 Dirección de Recursos Financieros | G31: 25 | H31: 2C.6.3 Regalías | M31: División de Derecho, Política y Gobierno CGT
D32: Sistema Bibliotecario de la Universidad | E32: Departamento de Ingeniería Física CLE | F32: 100404 Dirección de Servicios y Tecnologías de la Información | G32: 26 | H32: 2C.7 Procedimientos penales | M32: Departamento de Derecho CGT
D33: Sistema Universitario de Multimodalidad Educativa (SUME) | E33: Departamento de Ingenierías Química, Electrónica y Biomédica CLE | F33: 100405 Dirección de Infraestructura | G33: 27 | H33: 2C.7.1 Averiguaciones previas | M33: Departamento de Gestión Pública CGT
D34: Unidad de Apoyo al Desarrollo Educativo | E34: Departamento de Psicología CLE | F34: 100406 Dirección de Red Médica | G34: 28 | H34: 2C.7.2 Causas penales | M34: Departamento de Estudios Políticos y de Gobierno
E35: Departamento de Medicina y Nutrición CLE | F35: 100407 Dirección de Adquisiciones y Servicios | G35: 29 | H35: 2C.8 Procedimientos de investigación administrativa
D36: Secretaría de Gestión y Desarrollo | E36: Departamento de Investigaciones Médicas CLE | G36: 30 | H36: 2C.9 Procedimientos administrativos no jurisdiccionales | M36: CAMPUS LEÓN
D37: Dirección de Infraestructura y Servicios Universitarios | E37: Departamento de Ciencias Aplicadas CLE | F37: 100408 Procuraduría Universitaria (Defensoría de los Derechos Humanos en el Entorno Universitario) | G37: 31 | H37: 2C.9.1 Revisiones fiscales | M37: División de Ciencias e Ingenierías CLE
D38: Dirección de la Red Médica | E38: Departamento de Enfermería CLE | G38: 32 | H38: 2C.9.2 Inspecciones | M38: Departamento de Física CLE
D39: Dirección de Planeación | E39: Departamento de Enfermería Gto | F39: 200101 Rectoría del Campus Guanajuato | G39: 33 | H39: 2C.9.3 Importaciones | M39: Departamento de Ingeniería Física CLE
D40: Dirección de Recursos Financieros | E40: Departamento de Estudios Sociales CLE | F40: 200201 División de Ciencias Sociales y Humanidades CGT | G40: 34 | H40: 2C.10 Pedimentos y requerimientos no contenciosos | M40: Departamento de Ingenierías Química, Electrónica y Biomédica CLE
D41: Dirección de Recursos Humanos | E41: Departamento de Gestión Pública CLE | F41: 200202 Departamento de Filosofía CGT | G41: 35 | H41: 2C.10.1 Pedimentos y requerimientos del Ministerio Publico | M41: División de Ciencias de la Salud CLE
D42: Dirección de Servicios y Tecnologías de la Información | E42: Departamento de Estudios Culturales CLE | F42: 200203 Departamento de Educación CGT | G42: 36 | H42: 2C.10.2 Pedimentos y requerimientos juridiccionales | M42: Departamento de Psicología CLE
F43: 200204 Departamento de Letras Hispánicas CGT | G43: 37 | H43: 2C.10.3 Solicitud de peritajes | M43: Departamento de Medicina y Nutrición CLE
D44: Rectoría del Campus Guanajuato (RCGT) | E44: CAMPUS IRAPUATO-SALAMANCA | F44: 200205 Departamento de Historia CGT | G44: 38 | H44: 2C.11 Trámites migratorios y consulares | M44: Departamento de Investigaciones Médicas CLE
D45: División de Ciencias Sociales y Humanidades CGT | E45: CINUG | F45: 200206 Departamento de Lenguas CGT | G45: 39 | H45: 2C.12 Quejas, Observaciones y Recomendaciones | M45: Departamento de Ciencias Aplicadas CLE
D46: División de Ciencias Naturales y Exactas CGT | E46: Departamento de Agronomía CIS | F46: 200207 Departamento de Estudios Culturales | M46: Departamento de Enfermería CLE
D47: División de Arquitectura, Arte y Diseño CGT | E47: Departamento de Alimentos CIS | F47: 200301 División de Ciencias Naturales y Exactas CGT | H47: 3C PLANEACIÓN, PRESUPUESTACIÓN, EVALUACIÓN Y ORGANIZACIÓN | M47: Departamento de Enfermería Gto
D48: División de Ingenierías CGT | E48: Departamento de Ingeniería Agrícola CIS | F48: 200302 Departamento de Ingeniería Química CGT | G48: 40 | H48: 3C.1 Normas y políticas en materia de planeación, presupuestación, evaluación y organización | M48: División de Ciencias Sociales y Humanidades CLE
D49: División de Ciencias Económico Administrativas CGT | E49: Departamento de Enfermería CIS | F49: 200303 Departamento de Química CGT | G49: 41 | H49: 3C.2 Programas y proyectos de planeación | M49: Departamento de Estudios Sociales CLE
D50: División de Derecho, Política y Gobierno CGT | E50: Departamento de Ciencias Ambientales CIS | F50: 200304 Departamento de Biología CGT | G50: 42 | H50: 3C.3 Programas y proyectos de presupuestación | M50: Departamento de Gestión Pública CLE
E51: Departamento de Veterinaria y Zootecnia | F51: 200305 Departamento de Farmacia CGT | G51: 43 | H51: 3C.4 Programas y proyectos de información y evaluación | M51: Departamento de Estudios Culturales CLE
D52: Rectoría del Campus León (RCL) | E52: Departamento de Ingeniería Mecánica CIS | F52: 200306 Departamento de Astronomía CGT | G52: 44 | H52: 3C.5 Programas y proyectos de organización
D53: División de Ciencias e Ingenierías CLE | E53: Departamento de Ingeniería Eléctrica CIS | F53: 200307 Departamento de Matemáticas CGT | G53: 45 | H53: 3C.6 Plan de Desarrollo Institucional | M53: CAMPUS IRAPUATO-SALAMANCA
D54: División de Ciencias de la Salud CLE | E54: Departamento de Ingeniería Electrónica | F54: 200308 Departamento de Enfermaería y Obstetricia CGT | G54: 46 | H54: 3C.6.1 Plan o programa de trabajo | M54: CINUG
D55: División de Ciencias Sociales y Humanidades CLE | E55: Departamento de Arte y Empresas CIS | F55: 200401 División de Arquitectura, Arte y Diseño CGT | G55: 47 | H55: 3C.6.2 Programa anual | M55: División de Ciencias de la Vida CIS
E56: Departamento de Estudios Multidisciplinarios CIS | F56: 200402 Departamento de Artes Visuales CGT | G56: 48 | H56: 3C.6.3 Informes | M56: Departamento de Agronomía CIS
D57: Rectoría del Campus Irapuato- Salamanca (RCIS) | F57: 200403 Departamento de Arquitectura CGT | G57: 49 | H57: 3C.7 Información estadística | M57: Departamento de Alimentos CIS
D58: CINUG | E58: CAMPUS CELAYA-SALVATIERRA | F58: 200404 Departamento de Diseño CGT | G58: 50 | H58: 3C.7.1 Cuestionarios | M58: Departamento de Ingeniería Agrícola CIS
D59: División de Ciencias de la Vida CIS | E59: Departamento de Enfermería CCS | F59: 200405 Departamento de Música CGT | G59: 51 | H59: 3C.7.2 Análisis y Reportes | M59: Departamento de Enfermería CIS
D60: División de Ingeniería CIS | E60: Departamento de Enfermería Clínica CCS | F60: 200501 División de Ingenierías CGT | G60: 52 | H60: 3C.8 Programación presupuestal | M60: Departamento de Ciencias Ambientales CIS
E61: Departamento de Ingeniería Agroindustrial | F61: 200502 Departamento de Ingeniería Civil CGT | G61: 53 | H61: 3C.9 Indicadores de desempeño, calidad y productividad | M61: Departamento de Veterinaria y Zootecnia
D62: Rectoría del Campus Celaya-Salvatierra (RCCS) | E62: Departamento de Estudios Sociales CCS | F62: 200503 Departamento de Ingeniería Geomática CGT | G62: 54 | H62: 3C.10 Dictamen técnico de estructuras administrativas | M62: División de Ingeniería CIS
D63: División de Ciencias de la Salud CCS | E63: Departamento de Finanzas y Administración CCS | F63: 200504 Departamento de Ingeniería en Minas, Metalurgia y Geología CGT | G63: 55 | H63: 3C.11 Integración y revisión de manuales, normas, lineamientos, de procesos y procedimientos | M63: Departamento de Ingeniería Mecánica CIS
D64: División de Ciencias Sociales CCS | E64: Departamento de Estudios Culturales CCS | F64: 200601 División de Ciencias Económico Administrativas CGT | G64: 56 | H64: 3C.12 Programas de mejora administrativa | M64: Departamento de Ingeniería Eléctrica CIS
F65: 200602 Departamento de Estudios Organizacionales CGT | G65: 57 | H65: 3C.13 Certificación de calidad de procesos y servicios | M65: Departamento de Ingeniería Electrónica
D66: Dirección del CNMS | E66: N/A | F66: 200603 Departamento de Economía y Finanzas CGT | G66: 58 | H66: 3C.13.1 Organizacion Internacional de Normalizacion (ISO) | M66: Departamento de Arte y Empresas CIS
D67: ENMS Celaya | F67: 200604 Departamento de Gestión y Dirección de Empresas CGT | G67: 59 | H67: 3C.13.2 Certificación matriz de etapas | M67: Departamento de Estudios Multidisciplinarios CIS
D68: ENMS Guanajuato | F68: 200701 División de Derecho, Política y Gobierno CGT | G68: 60 | H68: 3C.13.3 Certificación de procedimientos
D69: ENMS Irapuato | F69: 200702 Departamento de Derecho CGT | G69: 61 | H69: 3C.13.4 Reconocimiento al personal por calidad y eficacia | M69: CAMPUS CELAYA-SALVATIERRA
D70: ENMS León | F70: 200703 Departamento de Gestión Pública CGT | G70: 62 | H70: 3C.13.5 Premios por concepto de calidad institucional | M70: División de Ciencias de la Salud
D71: ENMS Centro Histórico | F71: 200704 Departamento de Estudios Políticos y de Gobierno | G71: 63 | H71: 3C.13.6 Acreditaciones | M71: Departamento de Enfermería CCS
D72: ENMS Pénjamo | G72: 64 | H72: 3C.13.7 Buzón de quejas, sugerencias, felicitaciones | M72: Departamento de Enfermería Clínica CCS
D73: ENMS Salamanca | F73: 300101 Rectoría Campus León | G73: 65 | H73: 3C.14 Desconcentración y descentralización de funciones académico-administrativas | M73: Departamento de Ingeniería Agroindustrial
D74: ENMS Salvatierra | F74: 300201 División de Ciencias e Ingenierías CLE | M74: División de Ciencias Sociales (CCS)
D75: ENMS Silao | F75: 300202 Departamento de Física CLE | H75: 4C RECURSOS HUMANOS | M75: Departamento de Estudios Sociales CCS
D76: ENMS Moroleón | F76: 300203 Departamento de Ingenieróa Física CLE | G76: 66 | H76: 4C.1 Programas y proyectos en materia de recursos humanos | M76: Departamento de Finanzas y Administración CCS
F77: 300204 Departamento de Ingenierías Química, Electrónica y Biomédica CLE | G77: 67 | H77: 4C.2 Expedientes de personal | M77: Departamento de Estudios Culturales CCS
D78: Contraloría General - OIC | F78: 300301 División de Ciencias de la Salud CLE | G78: 68 | H78: 4C.3 Expedientes de registro y control de plazas | M78: Otro
D79: Defensoría de los Derechos Humanos en el Entorno Universitario | F79: 300302 Departamento de Psicología CLE | G79: 69 | H79: 4C.4 Nómina institucional
D80: Junta Directiva | F80: 300303 Departamento de Medicina y Nutrición CLE | G80: 70 | H80: 4C.5 Reclutamiento y selección
D81: Patronato de la Universidad de Guanajuato | F81: 300304 Departamento de Investigaciones Médicas CLE | G81: 71 | H81: 4C.5.1 Convocatorias y concursos
F82: 300305 Departamento de Ciencias Aplicadas CLE | G82: 72 | H82: 4C.6 Incidencias del personal
F83: 300306 Departamento de Enfermería CLE | G83: 73 | H83: 4C.7 Descuentos
F84: 300307 Departamento de Enfermería Gto | G84: 74 | H84: 4C.8 Estímulos
F85: 300401 División de Ciencias Sociales y Humanidades CLE | G85: 75 | H85: 4C.9 Concursos de oposición
F86: 300402 Departamento de Estudios Sociales CLE | G86: 76 | H86: 4C.10 Prestaciones
F87: 300403 Departamento de Gestión Pública CLE | G87: 77 | H87: 4C.11 Jubilaciones
F88: 300404 Departamento de Estudios Culturales CLE | G88: 78 | H88: 4C.11.1 Programa de retiro voluntario
G89: 79 | H89: 4C.12 Asuntos laborales
F90: 400101 Rectoría del Campus Irapuato- Salamanca | G90: 80 | H90: 4C.12.1 Clima Organizacional
F91: 400102 CINUG | G91: 81 | H91: 4C.13 Expedición de constancias y credenciales
F92: 400201 División de Ciencias de la Vida CIS | G92: 82 | H92: 4C.14 Honorarios por servicios profesionales
F93: 400202 Departamento de Agronomía CIS | G93: 83 | H93: 4C.15 Asociaciones Sindicales
F94: 400203 Departamento de Alimentos CIS
F95: 400204 Departamento de Ingeniería Agrícola CIS | H95: 5C RECURSOS FINANCIEROS
F96: 400205 Departamento de Enfermería CIS | G96: 84 | H96: 5C.1 Programas y proyectos en materia de Recursos Financieros y Contables
F97: 400206 Departamento de Ciencias Ambientales CIS | G97: 85 | H97: 5C.2 Egresos
F98: 400207 Departamento de Veterinaria y Zootecnia | G98: 86 | H98: 5C.3 Ingresos
F99: 400301 División de Ingeniería CIS | G99: 87 | H99: 5C.3.1 Autogenerados
F100: 400302 Departamento de Ingeniería Mecánica CIS | G100: 88 | H100: 5C.4 Estados Financieros
F101: 400303 Departamento de Ingeniería Eléctrica CIS | G101: 89 | H101: 5C.5 Libros Contables
F102: 400304 Departamento de Ingeniería Electrónica | G102: 90 | H102: 5C.6 Registro y control de pólizas de egresos
F103: 400305 Departamento de Arte y Empresas CIS | G103: 91 | H103: 5C.7 Registro y control de pólizas de ingresos
F104: 400306 Departamento de Estudios Multidisciplinarios CIS | G104: 92 | H104: 5C.8 Pólizas de diario
G105: 93 | H105: 5C.9 Auxiliares de cuentas
F106: 500101 Rectoría del Campus Celaya-Salvatierra | G106: 94 | H106: 5C.10 Conciliaciones
F107: 500201 División de Ciencias de la Salud CCS | G107: 95 | H107: 5C.11 Asignación y optimización de recursos financieros
F108: 500202 Departamento de Enfermería CCS | G108: 96 | H108: 5C.13 Estado del ejercicio del presupuesto
F109: 500203 Departamento de Enfermería Clínica CCS | G109: 97 | H109: 5C.14 Transferencias de presupuesto
F110: 500204 Departamento de Ingeniería Agroindustrial | G110: 98 | H110: 5C.15 Ampliaciones del presupuesto
F111: 500301 Departamento de Estudios Sociales CCS | G111: 99 | H111: 5C.16 Aportaciones a capital
F112: 500302 Departamento de Estudios Sociales CCS | G112: 100 | H112: 5C.17 Créditos concedidos
F113: 500303 Departamento de Finanzas y Administración CCS | G113: 101 | H113: 5C.18 Cuentas por liquidar
F114: 500304 Departamento de Estudios Culturales | G114: 102 | H114: 5C.19 Garantías, fianzas y depósitos
G115: 103 | H115: 5C.20 Compras directas
F116: 600101 Dirección del CNMS | G116: 104 | H116: 5C.21 Control de cheques
F117: 600201 ENMS Celaya | G117: 105 | H117: 5C.22 Caja y bancos
F118: 600301 ENMS Guanajuato | G118: 106 | H118: 5C.23 Fondo fijo y revolvente
F119: 600401 ENMS Irapuato | G119: 107 | H119: 5C.24 Inversiones en valores
F120: 600501 ENMS León | G120: 108 | H120: 5C.25 Fideicomisos
F121: 600601 ENMS Centro Histórico | G121: 109 | H121: 5C.26 Cuenta anual
F122: 600701 Pénjamo | G122: 110 | H122: 5C.27 Catálogos contables
F123: 600801 Salamanca
F124: 600901 Salvatierra | H124: 6C RECURSOS MATERIALES Y OBRAS
F125: 601001 San Luis de la Paz | G125: 111 | H125: 6C.1 Programas y proyectos referentes a Recursos Materiales, Obras, Conservación y Mantenimiento
F126: 601101 Silao | G126: 112 | H126: 6C.2 Adquisición, arrendamiento y servicios
F127: 601201 Moroleón | G127: 113 | H127: 6C.3 Expediente de obras
G128: 114 | H128: 6C.4 Seguros y fianzas
G129: 115 | H129: 6C.5 Calidad en materia de obras, conservación y equipamiento
G130: 116 | H130: 6C.6 Precios unitarios en obras y servicios
G131: 117 | H131: 6C.7 Asesoría técnica en materia de obras
G132: 118 | H132: 6C.8 Conservación y mantenimiento de la infraestructura física
G133: 119 | H133: 6C.9 Registro y control de proveedores y contratistas
G134: 120 | H134: 6C.10 Registro y control del inventario de activo fijo
G135: 121 | H135: 6C.11 Inventario físico y control de bienes muebles
G136: 122 | H136: 6C.12 Inventario físico y control de bienes inmuebles
G137: 123 | H137: 6C.13 Almacenamiento, control y abastecimiento de bienes y materiales
G138: 124 | H138: 6C.14 Control de calidad de bienes e insumos
G139: 125 | H139: 6C.15 Control y seguimiento de obras y remodelaciones
G140: 126 | H140: 6C.16 Dictámenes de comités y subcomités de adquisiciones, arrendamientos y servicios
G141: 127 | H141: 6C.17 Dictámenes del comité de enajenación de bienes muebles e inmuebles
G142: 128 | H142: 6C.18 Dictámenes del comité de obra
H144: 7C SERVICIOS GENERALES
G145: 129 | H145: 7C.1 Programas y proyectos en materia de servicios generales
G146: 130 | H146: 7C.2 Servicios médicos
G147: 131 | H147: 7C.3 Servicios básicos
G148: 132 | H148: 7C.4 Servicios de seguridad y vigilancia
G149: 133 | H149: 7C.5 Servicios de limpieza, higiene y fumigación
G150: 134 | H150: 7C.6 Servicios de transporte y movilidad
G151: 135 | H151: 7C.7 Cervicios de telefonía, telefonía celular y radiolocalización
G152: 136 | H152: 7C.8 Servicios de correspondencia y mensajería
G153: 137 | H153: 7C.9 Mantenimiento, conservación e instalación de mobiliario
G154: 138 | H154: 7C.10 Mantenimiento, conservación e instalación de equipo de cómputo
G155: 139 | H155: 7C.11 Control del parque vehicular
G156: 140 | H156: 7C.12 Control de combustible
G157: 141 | H157: 7C.13 Control y servicios en auditorios, salas, museos y áreas deportivas
G158: 142 | H158: 7C.14 Programas y proyectos de Protección Civil
G159: 143 | H159: 7C.14.1 Capacitación y adiestramiento en materia de protección civil
G160: 144 | H160: 7C.14.2 Dictamen de los estudios de análisis de riesgo
G161: 145 | H161: 7C.14.3 Asesorías en materia de protección civil
H163: 8C TECNOLOGÍAS Y SERVICIOS DE LA INFORMACIÓN
G164: 146 | H164: 8C.1 Programas y proyectos en materia de telecomunicaciones
G165: 147 | H165: 8C.2 Desarrollo e infraestructura de telecomunicaciones
G166: 148 | H166: 8C.3 Desarrollo e infraestructura de la página web de la Universidad de Guanajuato
G167: 149 | H167: 8C.4 Desarrollo de redes de comunicación de voz y datos
G168: 150 | H168: 8C.6 Control de uso de licencias y usuarios de software y hardware
G169: 151 | H169: 8C.7 Asesoría en tecnologías de información y comunicación
G170: 152 | H170: 8C.8 Programas y proyectos en materia de informática
G171: 153 | H171: 8C.9 Desarrollo informático
G172: 154 | H172: 8C.10 Seguridad informática
G173: 155 | H173: 8C.11 Análisis, desarrollo y programación de sistemas
G174: 156 | H174: 8C.12 Automatización de procesos
G175: 157 | H175: 8C.13 Control y desarrollo del equipo informático
G176: 158 | H176: 8C.14 Desarrollo, actualización y mantenimiento del sitio web
G177: 159 | H177: 8C.15 Programas y proyectos referentes a servicios de información
G178: 160 | H178: 8C.16 Gestión documental
G179: 161 | H179: 8C.16.1 Acuses, documentación para conocimiento, copias simples
G180: 162 | H180: 8C.17 Administración de archivos
G181: 163 | H181: 8C.18 Administración de bibliotecas
G182: 164 | H182: 8C.19 Administración de otros centros de documentación
G183: 165 | H183: 8C.20 Administración y preservación de acervos digitales
G184: 166 | H184: 8C.21 Procesos técnicos en los servicios de información
G185: 167 | H185: 8C.22 Acceso y reserva en los servicios de información
G186: 168 | H186: 8C.23 Productos para la divulgación de servicios
G187: 169 | H187: 8C.24 Servicios y productos en internet e intranet
H189: 9C COMUNICACIÓN SOCIAL
G190: 170 | H190: 9C.1 Programas y proyectos de comunicación social
G191: 171 | H191: 9C.2 Publicaciones e impresos institucionales
G192: 172 | H192: 9C.3 Material multimedia
G193: 173 | H193: 9C.4 Publicidad institucional
G194: 174 | H194: 9C.5 Entrevistas para medios
G195: 175 | H195: 9C.6 Boletines informativos para medios
G196: 176 | H196: 9C.7 Inserciones y anuncios en medios
G197: 177 | H197: 9C.8 Actos y eventos institucionales
G198: 178 | H198: 9C.9 Servicios de comunicación electrónica
H200: 10C AUDITORÍA
G201: 179 | H201: 10C.1 Programas y proyectos en materia de control y auditoría
G202: 180 | H202: 10C.2 Auditoría
G203: 181 | H203: 10C.3 Requerimientos de información
G204: 182 | H204: 10C.4 Quejas, denuncias y felicitaciones
... 108 more rows
